fUSD/lending_fUSD_20251026
["ID","MTS","AMOUNT","RATE_DAILY","PERIOD"]
[392446463,1761486572311,-516.0,0.000368,2]
[392446464,1761486572331,-500.0,0.00036906,30]
[392446465,1761486572351,-421.7513634,0.00037,2]
[392446477,1761486635971,-196.38717215,0.00032,120]
[392446478,1761486635981,-196.38717215,0.00033,120]
[392446479,1761486635994,-1578.2486366,0.00037,2]
[392446480,1761486636004,-187.0,0.00037007,2]
[392446481,1761486636014,-817.0,0.00037064,2]
[392446482,1761486636023,-1179.0,0.00037298,2]
[392446483,1761486636032,-170.0,0.00037298,2]
[392446484,1761486636042,-2000.0,0.000375,2]
[392446485,1761486636051,-501.77,0.00037783,2]
[392446486,1761486636060,-2567.5,0.00037883,2]
[392446487,1761486636070,-2000.0,0.00038,2]
[392446488,1761486636079,-169.71,0.00038018,120]
[392446489,1761486636088,-500.0,0.00038038,30]
[392446490,1761486636099,-633.06,0.00038095,2]
[392446491,1761486636108,-971.11,0.0003812,2]
[392446492,1761486636117,-1556.71009969,0.00038232,2]
[392446493,1761486636126,-152.76,0.00038356,2]
[392446494,1761486636135,-500.0,0.00038402,30]
[392446495,1761486636145,-163.3,0.00038429,2]
[392446496,1761486636155,-500.0,0.00038466,2]
[392446497,1761486636165,-2000.0,0.000385,2]
[392446498,1761486636174,-500.0,0.00038663,30]
[392446499,1761486636184,-151.0,0.00038675,2]
[392446500,1761486636193,-151.0,0.00038675,2]
[392446501,1761486636203,-151.0,0.00038675,2]
[392446502,1761486636213,-151.0,0.00038675,2]
[392446503,1761486636222,-151.0,0.00038675,2]
[392446504,1761486636232,-168.83364264,0.00038675,2]
[392446505,1761486636243,-3743.89,0.00038698,2]
[392446506,1761486636253,-166.338,0.00038739,52]
[392446507,1761486636263,-344.12,0.00038739,2]
[392446508,1761486636272,-500.0,0.0003875,30]
[392446509,1761486636282,-500.0,0.00038795,2]
[392446510,1761486636291,-724.59200877,0.00038805,30]
[392446511,1761486636302,-2000.0,0.00039,2]
[392446513,1761486636311,-1000.0,0.00039042,2]
[392446515,1761486636321,-300.0,0.00039073,93]
[392446517,1761486636330,-2000.0,0.000395,2]
[392446518,1761486636340,-267.69133608,0.0003959,2]
[392446520,1761486636349,-500.0,0.00039625,30]
[392446522,1761486636360,-267.69133606,0.00039635,2]
[392446525,1761486636370,-2082.05712445,0.0003968,2]
[392446527,1761486636383,-267.69133606,0.0003968,2]
[392446529,1761486636392,-2082.05712445,0.00039682,2]
[392446531,1761486636401,-2082.05712445,0.00039684,2]
[392446533,1761486636411,-2082.05712445,0.00039687,2]
[392446535,1761486636424,-2082.05712445,0.00039689,2]
[392446538,1761486636433,-591.64835747,0.00039689,7]
[392446541,1761486636442,-220.98412807,0.00039689,7]
[392446543,1761486636452,-500.0,0.00039689,15]
[392446545,1761486636461,-500.0,0.00039689,15]
[392446548,1761486636470,-500.0,0.00039689,15]
[392446551,1761486636480,-500.0,0.00039689,15]
[392446554,1761486636489,-500.0,0.00039689,15]
[392446557,1761486636498,-500.0,0.00039689,15]
[392446560,1761486636510,-224.53003662,0.00039689,15]
[392446562,1761486636522,-275.46996338,0.00039689,15]
[392446564,1761486636530,-500.0,0.00039689,15]
[392446566,1761486636539,-500.0,0.00039689,15]
[392446568,1761486636549,-500.0,0.00039689,15]
[392446569,1761486636558,-500.0,0.00039689,15]
[392446570,1761486636567,-500.0,0.00039689,15]
[392446571,1761486636576,-500.0,0.00039689,15]
[392446572,1761486636585,-500.0,0.00039689,15]
[392446573,1761486636594,-500.0,0.00039689,15]
[392446574,1761486636603,-500.0,0.00039689,15]
[392446575,1761486636611,-393.03192682,0.00039689,15]
[392446576,1761486636626,-106.96807318,0.00039689,15]
[392446577,1761486636635,-500.0,0.00039689,15]
[392446578,1761486636644,-500.0,0.00039689,15]
[392446579,1761486636653,-500.0,0.00039689,15]
[392446580,1761486636662,-500.0,0.00039689,15]
[392446581,1761486636671,-500.0,0.00039689,7]
[392446582,1761486636680,-500.0,0.00039689,15]
[392446583,1761486636689,-500.0,0.00039689,15]
[392446584,1761486636698,-500.0,0.00039689,15]
[392446585,1761486636707,-212.00087941,0.00039689,15]
[392446586,1761486636716,-500.0,0.00039689,15]
[392446587,1761486636725,-500.0,0.00039689,15]
[392446588,1761486636734,-500.0,0.00039689,15]
[392446589,1761486636894,-500.0,0.00039689,15]
[392446590,1761486636906,-500.0,0.00039689,15]
[392446591,1761486636915,-500.0,0.00039689,15]
[392446592,1761486636925,-500.0,0.00039689,15]
[392446593,1761486636935,-500.0,0.00039689,15]
[392446594,1761486636946,-500.0,0.00039689,15]
[392446595,1761486636957,-500.0,0.00039689,15]
[392446596,1761486636967,-500.0,0.00039689,15]
[392446597,1761486636977,-500.0,0.00039689,15]
[392446598,1761486636987,-841.96667476,0.0003969,2]
[392446599,1761486636996,-172.68815734,0.0003969,2]
[392446600,1761486637005,-2082.05712445,0.00039691,2]
[392446601,1761486637014,-841.9666747,0.00039691,2]
[392446602,1761486637024,-841.9666747,0.00039692,2]
[392446603,1761486637033,-2082.05712445,0.00039693,2]
[392446604,1761486637044,-841.9666747,0.00039693,2]
[392446605,1761486637054,-841.9666747,0.00039694,2]
[392446606,1761486637063,-2082.05712445,0.00039696,2]
[392446607,1761486637074,-841.9666747,0.00039696,2]
[392446608,1761486637084,-841.9666747,0.00039697,2]
[392446609,1761486637096,-2082.05712445,0.00039698,2]
[392446610,1761486637106,-841.9666747,0.00039698,2]
[392446611,1761486637115,-841.9666747,0.00039699,2]
[392446612,1761486637125,-358.60616387,0.000397,2]
[392446613,1761486637134,-2082.05712445,0.000397,2]
[392446615,1761486637143,-841.9666747,0.000397,2]
[392446616,1761486637155,-500.0,0.00039728,30]
[392446617,1761486637164,-500.0,0.00039773,5]
[392446618,1761486637174,-417.64369229,0.00039779,31]
[392446619,1761486637183,-500.0,0.0003978,2]
[392446620,1761486637193,-147081.159646,0.0003978,4]
[392446621,1761486637202,-1626.49366744,0.0003978,4]
[392446622,1761486637211,-172.94126805,0.0003978,2]
[392446623,1761486637221,-4744.55353698,0.00039789,4]
[392446624,1761486637230,-1626.49366744,0.00039789,4]
[392446625,1761486637239,-698.15,0.00039789,30]
[392446626,1761486637249,-500.0,0.00039789,9]
[392446627,1761486637259,-500.0,0.00039789,9]
[392446628,1761486637268,-500.0,0.00039789,9]
[392446629,1761486637279,-18978.2141479,0.0003979,4]
[392446630,1761486637289,-1626.49366744,0.0003979,4]
[392446631,1761486637299,-6627.5280637,0.0003979,2]
[392446632,1761486637310,-6426.6556084,0.0003979,2]
[392446633,1761486637321,-6046.77959352,0.0003979,2]
[392446634,1761486637334,-20181.58673084,0.0003979,2]
[392446635,1761486637429,-3792.17403128,0.0003979,2]
[392446636,1761486637441,-2080.0,0.0003979,2]
[392446637,1761486637451,-19265.89671864,0.0003979,2]
[392446638,1761486637464,-59468.93453256,0.0003979,2]
[392446639,1761486637474,-3258.64836822,0.0003979,2]
[392446688,1761486638013,-76809.52770938,0.0003979,2]
[392446689,1761486638161,-12256.65246344,0.0003979,2]
[392446690,1761486638173,-1437.76353558,0.0003979,2]
[392446714,1761486639523,-253.03252887,0.0003979,2]
[392446715,1761486639639,-16929.91369137,0.0003979,2]
[392446716,1761486639648,-234.450386,0.0003979,120]
[392446717,1761486639658,-151.755044,0.0003979,120]
[392446718,1761486639667,-152.900926,0.0003979,120]
[392446719,1761486639677,-500.0,0.0003979,30]
[392446720,1761486639685,-4879.4484675,0.0003979,2]
[392446721,1761486639694,-19377.7998356,0.0003979,2]
[392446722,1761486639703,-3377.9320404,0.0003979,2]
[392446723,1761486639712,-508.98098264,0.0003979,2]
[392446724,1761486639723,-2323.53595206,0.0003979,2]
[392446725,1761486639731,-151.0,0.0003979,120]
[392446726,1761486639740,-151.0,0.0003979,120]
[392446727,1761486639749,-151.0,0.0003979,120]
[392446728,1761486639758,-151.0,0.0003979,120]
[392446729,1761486639767,-155.855245,0.0003979,120]
[392446730,1761486639776,-151.0,0.0003979,120]
[392446731,1761486639786,-151.0,0.0003979,120]
[392446732,1761486639795,-293.503072,0.0003979,120]
[392446733,1761486639804,-52190.0889068,0.0003979,4]
[392446734,1761486639814,-18019.13230423,0.0003979,4]
[392446735,1761486639825,-773.0661364,0.0003979,4]
[392446736,1761486639836,-2390.11048617,0.0003979,4]
[392446744,1761486642500,-895.45162364,0.0003969,12]
[392446745,1761486642509,-19480.0327592,0.0003979,4]
[392446746,1761486642518,-151.0,0.0003979,30]
[392446747,1761486642527,-151.0,0.0003979,30]
[392446748,1761486642536,-151.0,0.0003979,30]
[392446749,1761486642546,-14734.70900119,0.00039799,2]
[392446750,1761486642555,-639.36595775,0.00039799,9]
[392446751,1761486642564,-36319.85204216,0.000398,31]
[392446752,1761486642573,-56062.99946179,0.000398,2]
[392446753,1761486642584,-423337.2929141,0.000398,2]
[392446754,1761486642604,-75.31299225,0.000398,2]
[392446755,1761486642691,-794.8981566,0.000398,2]
[392446822,1761486645417,-46351.6269039,0.000398,2]
[392446823,1761486645518,-17.13728426,0.000398,2]
[392446824,1761486645531,-5194.58801403,0.000398,2]
[392446825,1761486645601,-403.54953532,0.000398,2]
[392446826,1761486645612,-1145.01673428,0.000398,2]
[392446827,1761486645660,-349.59018949,0.000398,2]
[392446828,1761486645722,-307.85561031,0.000398,2]
[392446829,1761486645733,-577.4404,0.000398,2]
[392446874,1761486725287,500.0,0.00039844,120]
[392446875,1761486725892,500.0,0.00039844,120]
[392446876,1761486726522,500.0,0.00039844,120]
[392446877,1761486727194,500.0,0.00039844,120]
[392446878,1761486727837,500.0,0.00039844,120]
[392446879,1761486728463,500.0,0.00039844,120]
[392446883,1761486920635,157.86,0.00019428,2]
[392446884,1761486920831,36.62,0.0002045,2]
[392446885,1761486920853,121.24,0.0002045,2]
[392446886,1761486921050,157.86,0.00021473,2]
[392446887,1761486921260,157.86,0.00022495,2]
[392446888,1761486921464,63.04,0.00023518,2]
[392446889,1761486921489,94.82,0.00023518,2]
[392446890,1761486921668,157.86,0.0002454,2]
[392446893,1761487027319,2500.0,0.00028119,120]
[392446894,1761487027425,576.39432185,0.00026074,120]
[392446896,1761487033776,443.96527178,0.00039844,120]
[392446906,1761487232421,-157.86,0.00025563,2]
[392446907,1761487232455,-157.86,0.00026585,2]
[392446908,1761487232490,-10.7,0.00027608,2]
[392446909,1761487232504,-147.16,0.00027608,2]
[392446910,1761487232515,-10.7,0.00028631,2]
[392446911,1761487232528,-147.16,0.00028631,2]
[392446912,1761487232539,-10.7,0.00029653,2]
[392446913,1761487232551,-147.16,0.00029653,2]
[392446917,1761487269034,-470.3690997,0.00030284,2]
[392446918,1761487269047,-59.2618006,0.00030284,2]
[392446919,1761487269057,-157.86,0.00030676,2]
[392446920,1761487269066,-157.86,0.00031698,2]
[392446921,1761487269075,-154.6490997,0.00032721,2]
[392446939,1761487622327,190.73,0.00017246,2]
[392446943,1761487631126,-3.2109003,0.00032721,2]
[392446944,1761487631150,-153.796222,0.00032721,33]
[392446946,1761487755096,-8.151778,0.00032721,33]
[392446947,1761487755118,-157.86,0.00033743,2]
[392446948,1761487755138,-1000.0,0.00034365,2]
[392446949,1761487755158,-927.78701017,0.00034639,2]
[392446950,1761487755178,-103.36121183,0.00034766,2]
[392446951,1761487762168,-150.0,0.00034243,3]
[392446952,1761487762190,-54.49878817,0.00034766,2]
[392446953,1761487762213,-157.86,0.00035788,2]
[392446954,1761487762234,-166.66,0.00036245,30]
[392446955,1761487762256,-300.0,0.00036483,3]
[392446956,1761487762284,-157.86,0.00036811,2]
[392446957,1761487762307,-207.32,0.00036908,2]
[392446958,1761487762326,-155.53,0.00037313,30]
[392446959,1761487762346,-568.64509456,0.00037576,2]
[392446960,1761487762366,-610.0,0.00037674,2]
[392446961,1761487762391,-157.86,0.00037833,2]
[392446962,1761487762410,-166.66,0.00038153,30]
[392446963,1761487762430,-1909.48,0.00038193,2]
[392446964,1761487762454,-492.43,0.00038312,2]
[392446965,1761487762475,-500.0,0.00038351,30]
[392446966,1761487762496,-26.50706337,0.00038417,7]
[392446967,1761487773130,-150.0,0.00034743,3]
[392446968,1761487773154,-300.0,0.00036983,3]
[392446969,1761487773175,-273.49293663,0.00038417,7]
[392446970,1761487773194,-610.92339111,0.00038653,2]
[392446971,1761487773215,-160.0,0.00038785,2]
[392446972,1761487773236,-539.96,0.000388,7]
[392446973,1761487773260,-157.86,0.00038856,2]
[392446974,1761487773281,-400.0,0.00039074,5]
[392446975,1761487773301,-1600.0,0.00039075,5]
[392446976,1761487773322,-400.0,0.00039075,5]
[392446977,1761487773349,-999.87897954,0.00039076,2]
[392446978,1761487773412,-2426.02102046,0.00039076,2]
[392446979,1761487773434,-542.82595679,0.00039428,2]
[392446980,1761487773454,-898.63607218,0.000397,12]
[392446981,1761487773475,-318.80608826,0.000397,2]
[392446982,1761487773495,-1331.6855525,0.0003977,2]
[392446983,1761487773516,-180.82812479,0.00039771,7]
[392446984,1761487773535,-500.0,0.00039771,7]
[392446985,1761487773558,-500.0,0.00039771,31]
[392446986,1761487773583,-500.0,0.00039771,31]
[392446987,1761487773604,-500.0,0.00039771,31]
[392446988,1761487773626,-500.0,0.00039771,31]
[392446989,1761487773652,-500.0,0.00039771,31]
[392446990,1761487773677,-500.0,0.00039771,31]
[392446991,1761487773700,-500.0,0.00039771,31]
[392446992,1761487773727,-500.0,0.00039771,31]
[392446993,1761487773748,-500.0,0.00039771,31]
[392446994,1761487773771,-500.0,0.00039771,31]
[392446995,1761487773795,-500.0,0.00039771,31]
[392446996,1761487773824,-500.0,0.00039771,31]
[392446997,1761487773848,-473.68607812,0.00039771,31]
[392446998,1761487773871,-581.8,0.00039771,30]
[392446999,1761487773894,-1753.9450374,0.00039772,2]
[392447000,1761487773919,-47550.4847547,0.00039772,2]
[392447001,1761487773939,-500.0,0.00039773,2]
[392447002,1761487773961,-500.0,0.00039773,5]
[392447003,1761487773983,-500.0,0.00039773,5]
[392447004,1761487774004,-337.82055885,0.00039773,5]
[392447005,1761487774028,-500.0,0.00039773,5]
[392447006,1761487774052,-191.77873717,0.00039773,5]
[392447007,1761487774074,-193.34,0.00039778,2]
[392447008,1761487774095,-4789.26808987,0.0003978,4]
[392447009,1761487774117,-4789.26808987,0.00039786,4]
[392447010,1761487774137,-2000.0,0.00039789,120]
[392447011,1761487774156,-272.57875577,0.00039789,9]
[392447012,1761487774177,-292.35058461,0.00039789,31]
[392447013,1761487774198,-19157.0723595,0.0003979,4]
[392447014,1761487774219,-232.67467953,0.0003979,2]
[392447015,1761487774239,-177202.919325,0.0003979,4]
[392447016,1761487774259,-12192.6373333,0.0003979,4]
[392447017,1761487774279,-2280.1863145,0.00039796,2]
[392447018,1761487774300,-411.18148683,0.00039796,2]
[392447019,1761487831771,-150.0,0.00035243,3]
[392447020,1761487831781,-300.0,0.00037483,3]
[392447021,1761487831792,-160.0,0.00037576,2]
[392447022,1761487831804,-1552.89628624,0.000397,2]
[392447023,1761487831813,-172.68815732,0.000397,2]
[392447024,1761487831824,-1397.58510417,0.00039796,2]
[392447025,1761487831834,-264.0,0.00039799,5]
[392447026,1761487831845,-1458.0,0.00039799,5]
[392447027,1761487831855,-400.0,0.00039799,5]
[392447028,1761487831865,-834.0,0.000398,5]
[392447029,1761487831879,-12936.16303675,0.000398,31]
[392447030,1761487831900,-426.83436047,0.000398,31]
[392447031,1761487831937,-204.64540922,0.00039799,31]
[392447032,1761487831946,-17801.55004134,0.000398,31]
[392447137,1761487837593,-150.0,0.00035743,3]
[392447138,1761487837602,-223.29808559,0.00037983,3]
[392447139,1761487837614,-76.70191441,0.00037983,3]
[392447140,1761487837623,-500.0,0.00039799,31]
[392447141,1761487837635,-198.11467334,0.00039799,31]
[392447142,1761487837744,-21.18377979,0.00039799,31]
[392447143,1761487837753,-424.39458893,0.000398,31]
[392447144,1761487837767,-11570.98399359,0.000398,31]
[392447145,1761487837776,-16054.01600641,0.000398,2]
[392447162,1761487839732,-150.0,0.00036243,3]
[392447163,1761487839744,-117536.43638172,0.000398,2]
[392447164,1761487839810,-56800.00000004,0.000398,2]
[392447165,1761487839964,-150.0,0.00036743,3]
[392447166,1761487839974,-359.5693138,0.000398,2]
[392447167,1761487840255,-728715.74531806,0.000398,2]
[392447202,1761487842829,-373.0057602,0.000398,2]
[392447203,1761487842934,-4.98461103,0.000398,2]
[392447204,1761487842949,-1703.89196451,0.000398,2]
[392447205,1761487842983,-261181.30515862,0.000398,2]
[392447206,1761487843135,-290.59,0.000398,2]
[392447247,1761487845858,-269.78116655,0.000398,2]
[392447248,1761487845869,-10497.959,0.000398,2]
[392447249,1761487846007,-324.92000001,0.000398,2]
[392447379,1761487945544,-169.0,0.00039278,7]
[392447380,1761487945580,-28.76516989,0.00039653,96]
[392447384,1761488140941,250.0,0.00017,2]
[392447385,1761488226101,500.0,0.00039844,120]
[392447386,1761488226473,500.0,0.00039844,120]
[392447387,1761488226722,500.0,0.00039844,120]
[392447388,1761488227079,500.0,0.00039844,120]
[392447389,1761488227436,500.0,0.00039844,120]
[392447390,1761488227754,500.0,0.00039844,120]
[392447391,1761488228443,500.0,0.00039844,120]
[392447392,1761488229067,500.0,0.00039844,120]
[392447393,1761488229097,250.0,0.00039844,120]
[392447394,1761488229424,250.0,0.00039844,120]
[392447395,1761488229454,200.0,0.00039844,50]
[392447396,1761488229715,500.0,0.00039844,120]
[392447397,1761488230026,250.0,0.00039844,120]
[392447398,1761488230406,500.0,0.00039844,120]
[392447399,1761488230658,250.0,0.00039844,120]
[392447400,1761488231049,500.0,0.00039844,120]
[392447401,1761488231500,500.0,0.00039844,120]
[392447402,1761488231532,250.0,0.00039844,120]
[392447403,1761488231783,500.0,0.00039844,120]
[392447404,1761488231870,414.0,0.00039844,120]
[392447405,1761488232160,250.0,0.00039844,120]
[392447406,1761488232430,500.0,0.00039844,120]
[392447407,1761488232487,429.318,0.00039844,120]
[392447408,1761488232666,500.0,0.00039844,120]
[392447409,1761488232868,250.0,0.00039844,120]
[392447410,1761488233099,500.0,0.00039844,120]
[392447411,1761488233174,445.202766,0.00039844,120]
[392447412,1761488233204,250.0,0.00039844,120]
[392447413,1761488233370,500.0,0.00039844,120]
[392447414,1761488233587,250.0,0.00039844,120]
[392447415,1761488233737,500.0,0.00039844,120]
[392447416,1761488233782,461.67526834,0.00039844,120]
[392447417,1761488233846,250.0,0.00039844,120]
[392447418,1761488234219,250.0,0.00039844,120]
[392447419,1761488234427,478.75725327,0.00039844,120]
[392447420,1761488234486,250.0,0.00039844,120]
[392447421,1761488234521,500.0,0.00039844,120]
[392447422,1761488234877,250.0,0.00039844,120]
[392447423,1761488235088,496.47127164,0.00039844,120]
[392447424,1761488235119,250.0,0.00039844,120]
[392447425,1761488235154,250.0,0.00039844,120]
[392447426,1761488235187,500.0,0.00039844,120]
[392447427,1761488235541,250.0,0.00039844,120]
[392447428,1761488235765,250.0,0.00039844,120]
[392447429,1761488235797,500.0,0.00039844,120]
[392447430,1761488235832,514.84070869,0.00039844,120]
[392447431,1761488235865,250.0,0.00039844,120]
[392447432,1761488236128,250.0,0.00039844,120]
[392447433,1761488236202,250.0,0.00039844,120]
[392447434,1761488236421,250.0,0.00039844,120]
[392447435,1761488236451,500.0,0.00039844,120]
[392447436,1761488236479,250.0,0.00039844,120]
[392447437,1761488236508,533.88981491,0.00039844,120]
[392447438,1761488236788,250.0,0.00039844,120]
[392447439,1761488236885,500.0,0.00039844,120]
[392447440,1761488236944,250.0,0.00039844,120]
[392447441,1761488237067,500.0,0.00039844,120]
[392447442,1761488237112,553.64373807,0.00039844,120]
[392447443,1761488237141,250.0,0.00039844,120]
[392447444,1761488237276,151.0,0.00039844,120]
[392447445,1761488237526,250.0,0.00039844,120]
[392447446,1761488237556,500.0,0.00039844,120]
[392447447,1761488237689,250.0,0.00039844,120]
[392447448,1761488237755,500.0,0.00039844,120]
[392447449,1761488237832,574.12855637,0.00039844,120]
[392447450,1761488237930,151.0,0.00039844,120]
[392447451,1761488238152,250.0,0.00039844,120]
[392447452,1761488238349,500.0,0.00039844,120]
[392447453,1761488238380,250.0,0.00039844,120]
[392447454,1761488238468,500.0,0.00039844,120]
[392447455,1761488238605,595.37131296,0.00039844,120]
[392447456,1761488238642,151.0,0.00039844,120]
[392447457,1761488238782,250.0,0.00039844,120]
[392447458,1761488238842,500.0,0.00039844,120]
[392447459,1761488239240,500.0,0.00039844,120]
[392447460,1761488239273,617.40005154,0.00039844,120]
[392447461,1761488239329,151.0,0.00039844,120]
[392447462,1761488239422,250.0,0.00039844,120]
[392447463,1761488239547,500.0,0.00039844,120]
[392447464,1761488239909,640.24385345,0.00039844,120]
[392447465,1761488239950,151.0,0.00039844,120]
[392447466,1761488240077,250.0,0.00039844,120]
[392447467,1761488240230,500.0,0.00039844,120]
[392447468,1761488240616,151.0,0.00039844,120]
[392447469,1761488240717,250.0,0.00039844,120]
[392447470,1761488240865,500.0,0.00039844,120]
[392447471,1761488241240,151.0,0.00039844,120]
[392447472,1761488241335,250.0,0.00039844,120]
[392447473,1761488241582,499.0,0.00039844,120]
[392447474,1761488241912,151.0,0.00039844,120]
[392447475,1761488241952,250.0,0.00039844,120]
[392447476,1761488242030,500.0,0.00039844,120]
[392447477,1761488242503,500.0,0.00039844,120]
[392447478,1761488242573,250.0,0.00039844,120]
[392447479,1761488242603,250.0,0.00039844,120]
[392447480,1761488242688,500.0,0.00039844,120]
[392447482,1761488243134,518.5,0.00039844,120]
[392447483,1761488243224,250.0,0.00039844,120]
[392447484,1761488243253,250.0,0.00039844,120]
[392447485,1761488243368,500.0,0.00039844,120]
[392447486,1761488243770,537.6845,0.00039844,120]
[392447487,1761488243927,250.0,0.00039844,120]
[392447488,1761488244021,500.0,0.00039844,120]
[392447489,1761488244420,557.5788265,0.00039844,120]
[392447490,1761488244636,500.0,0.00039844,120]
[392447491,1761488245050,250.0,0.00039844,120]
[392447492,1761488245095,578.20924308,0.00039844,120]
[392447493,1761488245275,500.0,0.00039844,120]
[392447494,1761488245716,250.0,0.00039844,120]
[392447495,1761488245746,599.60298507,0.00039844,120]
[392447496,1761488245966,500.0,0.00039844,120]
[392447497,1761488246338,250.0,0.00039844,120]
[392447498,1761488246635,500.0,0.00039844,120]
[392447499,1761488246955,250.0,0.00039844,120]
[392447500,1761488247676,250.0,0.00039844,120]
[392447501,1761488247706,250.0,0.00039844,120]
[392447502,1761488248434,250.0,0.00039844,120]
[392447503,1761488249088,250.0,0.00039844,120]
[392447504,1761488249742,250.0,0.00039844,120]
[392447505,1761488250409,250.0,0.00039844,120]
[392447506,1761488251040,250.0,0.00039844,120]
[392447507,1761488251669,250.0,0.00039844,120]
[392447508,1761488252307,250.0,0.00039844,120]
[392447509,1761488252959,250.0,0.00039844,120]
[392447514,1761488525842,189.46895963,0.00039846,120]
[392447515,1761488528564,598.48392679,0.00039846,120]
[392447516,1761488528622,182.51508768,0.00039846,50]
[392447520,1761488708003,271818.29909995,0.00015,2]
[392447522,1761488761817,3746.31497681,8e-05,2]
[392447526,1761488816809,1082.18199574,0.000162,5]
[392447527,1761488828033,1036.16605589,0.00015,2]
[392447528,1761488834518,250.0,0.00039843,120]
[392447529,1761488835135,250.0,0.00039843,120]
[392447530,1761488835798,250.0,0.00039843,120]
[392447531,1761488836418,250.0,0.00039843,120]
[392447532,1761488837071,250.0,0.00039843,120]
[392447533,1761488837752,250.0,0.00039843,120]
[392447534,1761488838426,250.0,0.00039843,120]
[392447535,1761488839078,250.0,0.00039843,120]
[392447538,1761488869658,4782.61181848,0.0002,4]
[392447539,1761488871435,5368.65239678,0.00018,2]
[392447540,1761488873297,62565.7427024,0.00022,4]
[392447541,1761488875280,106570.08993141,0.00015,2]
[392447543,1761488892116,247.56446448,0.000135,2]
[392447544,1761488892204,304.31328614,0.000125,2]
[392447546,1761488907776,221.71348038,0.0001,2]
[392447551,1761488921457,7126.53127868,0.0001,2]
[392447552,1761488924915,3329.00143472,0.00013699,2]
[392447553,1761488940799,2040.7525,0.00039843,120]
[392447555,1761488946194,-295.537511,0.00027859,2]
[392447556,1761488946215,-279.0,0.00027999,2]
[392447557,1761488946235,-300.0,0.00027999,2]
[392447558,1761488946254,-20914.13359611,0.00028,2]
[392447559,1761488946275,-420.0,0.00030239,2]
[392447560,1761488946294,-177.57,0.00030657,2]
[392447561,1761488946314,-408.19667138,0.00032,120]
[392447562,1761488946335,-723.56202915,0.00032,2]
[392447563,1761488949126,-490.0,0.00032,2]
[392447564,1761488957092,-479.22503304,0.00032,2]
[392447565,1761488957113,-408.19667138,0.00033,120]
[392447566,1761488957135,-408.19667138,0.000339,120]
[392447567,1761488957154,-165.86,0.00033952,2]
[392447568,1761488957174,-254.5016242,0.00035,120]
[392447569,1761488957200,-153.69504718,0.00035,120]
[392447570,1761488957221,-408.19667138,0.00036,120]
[392447571,1761488957239,-180.65,0.00036013,2]
[392447572,1761488957258,-2035.47317927,0.0003696,50]
[392447573,1761488957276,-12717.99,0.00038337,2]
[392447574,1761488957295,-1852.42,0.00038353,2]
[392447575,1761488957314,-620.27916719,0.00038355,120]
[392447576,1761488957332,-316.27,0.00038388,2]
[392447577,1761488957356,-159.5,0.00038477,2]
[392447578,1761488957376,-32.41649134,0.00038533,2]
[392447579,1761488971121,-150.0,0.00034452,3]
[392447580,1761488971142,-300.0,0.00036692,3]